[Event "13th Asrian Memorial 2022"]
[Site "Yerevan"]
[Date "2022.06.15"]
[Round "9.3"]
[White "Babujian Levon"]
[Black "Davtyan, Arsen"]
[Result "1/2-1/2"]
[ECO "D35"]
[WhiteElo "2430"]
[BlackElo "2308"]
[Annotator "TA"]
[PlyCount "185"]
[EventDate "2022.06.07"]
[EventType "swiss"]
[EventCountry "ARM"]
[SourceTitle "playchess.com"]
[Source "ChessBase"]
[SourceQuality "1"]
[TimeControl "40/5400+30:1800+30"]

{[%evp 12,185,14,18,20,0,0,0,0,0,0,0,0,0,20,25,21,-18,0,-8,0,-7,26,5,123,119,119,119,111,95,94,81,117,112,88,103,143,127,81,7,7,7,7,7,7,7,7,7,7,7,7,7,7,7,7,7,7,0,0,0,0,0,0,0,7,7,7,7,7,0,7,7,7,7,7,7,7,7,7,7,7,7,8,7,7,0,0,0,8,0,0,0,0,0,0,0,0,0,0,0,0,0,0,0,0,0,0,0,0,0,0,0,0,0,0,0,0,0,0,0,0,0,0,0,0,0,0,0,0,0,0,0,0,0,0,0,0,0,0,0,0,0,0,0,0,0,0,0,0,0,0,0,0,0,0,0,0,0,0,0,0,0,0,0,0,0,0,0,0,0,0,0,0,0,0,0]} 1. d4 {[%emt 0:09:12]} Nf6 {[%emt 0:00:11]} 2. c4 {[%emt 0:00:07]} e6 {[%emt 0:00:05]} 3. Nc3 {[%emt 0:00:04]} d5 {[%emt 0:00:06]} 4. cxd5 {[%emt 0:00:11]} Nxd5 {[%emt 0:00:09]} 5. e4 {[%emt 0:00:32]} Nxc3 {[%emt 0:00:05]} 6. bxc3 {[%emt 0:00:02]} c5 {[%emt 0:00:05]} 7. Rb1 {[%emt 0:00:04]} Be7 {[%emt 0:00:06] The main line 7...Be7 scores better than 7...cxd4. D35: Queen's Gambit Declined: Exchange Variation.} 8. Nf3 {[%emt 0:00:21]} O-O {[%emt 0:00:42]} 9. Bd3 {[%emt 0:01:15][%cal Od4d5]} cxd4 {[%emt 0:00:22]} 10. cxd4 {[%emt 0:00:38]} Nc6 {[%emt 0:00:09]} 11. Be3 {[%emt 0:01:58]} b6 {[%emt 0:07:29]} 12. O-O {[%emt 0:01:56]} Nb4 {[%emt 0:10:05]} 13. Be2 {[%emt 0:01:26]} Bb7 {[%emt 0:00:48] [#]} 14. a3 $146 {[%emt 0:06:33]} (14. Qd2 $5 {[%cal Rb1b4]}) ({Predecessor:} 14. Qd2 Nc6 15. Rfd1 Na5 16. d5 exd5 17. exd5 Bd6 18. Nd4 Rc8 19. Nc6 Bxc6 20. dxc6 {1-0 (33) Cardoso Cardoso,J (2401)-Keymer,V (2591) Tornelo INT 2020}) 14... Nc6 {[%emt 0:00:11]} 15. Qd3 {[%emt 0:06:05]} Rc8 {[%emt 0:04:28]} 16. Rfd1 {[%emt 0:01:50]} Qd6 {[%emt 0:04:35]} 17. d5 $1 {[%emt 0:00:34]} Na5 {[%emt 0:07:20]} (17... exd5 $11 18. exd5 Ne5 19. Nxe5 Qxe5) 18. Bd2 $16 {[%emt 0:02:52]} Nc4 {[%emt 0:13:53]} 19. Bb4 {[%emt 0:01:40]} Qd7 {[%emt 0:00:26]} 20. Bxe7 {[%emt 0:02:58]} Qxe7 {[%emt 0:00:08]} 21. d6 {[%emt 0:00:09]} Qd7 {[%emt 0:14:13] [#]} 22. Rb4 $1 {[%emt 0:04:56]} b5 {[%emt 0:13:34]} 23. a4 {[%emt 0:00:58]} f5 {[%emt 0:10:24]} 24. exf5 {[%emt 0:05:04]} (24. Rxb5 $6 fxe4 25. Qd4 exf3 $11) 24... Rxf5 {[%emt 0:00:16]} 25. Rxb5 {[%emt 0:00:20]} (25. axb5 $16 Bd5 26. h3) 25... Bxf3 $11 {[%emt 0:07:08] The position is equal.} 26. Bxf3 {[%emt 0:13:10]} ({Don't go for} 26. gxf3 $2 Rxb5 27. axb5 Nb2 $19) 26... Rxb5 {[%mdl 64] [#] Remove Defender} 27. axb5 {[%emt 0:00:05]} Nb2 $1 {[%emt 0:00:08]} 28. Bc6 {[%emt 0:00:39]} Qf7 $132 {[%emt 0:00:03][%mdl 2048] Black is fighting back} ({But not} 28... Qd8 29. Qe2 Nxd1 30. d7 $16 (30. Qxd1 Qf6 $11)) 29. d7 {[%emt 0:01:03]} Rd8 {[%emt 0:00:04]} 30. Qd4 {[%emt 0:00:35]} Nxd1 31. Qxd1 {[%emt 0:00:04][%mdl 4096] Endgame Qd4 is the strong threat. KQR-KQB} Qf5 {[%emt 0:02:28]} 32. g3 {[%emt 0:02:31] Hoping for Qd4.} Qc5 {[%emt 0:02:43] Prevents Qd4.} 33. Qg4 {[%emt 0:00:09]} Qd6 {[%emt 0:00:37]} 34. Qe4 {[%emt 0:04:06]} (34. Qh5 {is interesting.} g6 35. Qg5 Rxd7 36. Bxd7 Qxd7 37. Qc5) 34... Rxd7 {[%emt 0:00:11]} 35. Bxd7 {[%emt 0:00:18]} Qxd7 {[%emt 0:00:04] KQ-KQ} 36. Qc6 {[%emt 0:00:29]} Qe7 {[%emt 0:00:41]} 37. h4 {[%emt 0:00:46]} g6 {[%emt 0:01:19]} 38. Kf1 {[%emt 0:01:31]} Kg7 {[%emt 0:01:02]} 39. Ke2 {[%emt 0:00:05]} Kf7 {[%emt 0:00:27]} 40. Ke3 {[%emt 0:00:00]} Qa3+ {[%emt 0:00:00]} 41. Ke4 {[%emt 0:05:40]} Qb4+ {[%emt 0:03:26]} 42. Kf3 {[%emt 0:00:51]} Qa3+ {[%emt 0:00:37]} 43. Kg2 {[%emt 0:01:31]} Qe7 {[%emt 0:03:39]} 44. Qf3+ {[%emt 0:00:03]} Kg7 {[%emt 0:01:07]} 45. Qc3+ {[%emt 0:00:16]} Kg8 {[%emt 0:01:08]} 46. Qe5 {[%emt 0:00:31]} Qb7+ {[%emt 0:01:49]} 47. Kh3 {[%emt 0:01:33]} Qb6 {[%emt 0:02:31]} 48. Qf6 {[%emt 0:07:57]} a6 {[%emt 0:02:10]} 49. bxa6 {[%emt 0:00:36]} Qxa6 {[%emt 0:00:05]} 50. h5 {[%emt 0:06:06]} gxh5 {[%emt 0:02:04]} 51. Qg5+ {[%emt 0:00:04]} Kf7 {[%emt 0:00:37] aiming for ...Qf1+.} 52. Qxh5+ {[%emt 0:00:18]} Kg7 {[%emt 0:00:04]} 53. Qe5+ {[%emt 0:00:11]} Kf7 {[%emt 0:00:25]} 54. Kg4 {[%emt 0:01:15]} Qd3 {[%emt 0:00:50]} 55. Kh4 {[%emt 0:04:45]} Qc2 {[%emt 0:01:38]} 56. Qf4+ {[%emt 0:01:11]} Kg6 {[%emt 0:00:52]} 57. g4 {[%emt 0:01:20]} Qb1 {[%emt 0:01:00]} 58. Qf3 {[%emt 0:04:25]} Qe1 {[%emt 0:00:21]} 59. Qd3+ {[%emt 0:00:19]} Kg7 {[%emt 0:00:29]} 60. Qd7+ {[%emt 0:01:00]} Kg6 {[%emt 0:00:06]} 61. Qd3+ {[%emt 0:07:10]} Kg7 {[%emt 0:00:04]} 62. Kg3 {[%emt 0:01:24]} Qe5+ {[%emt 0:00:20]} 63. f4 {[%emt 0:00:54]} Qc7 {[%emt 0:01:33]} 64. Qd4+ {[%emt 0:00:45]} Kf7 {[%emt 0:01:23]} 65. Kh4 {[%emt 0:00:48]} Qb7 {[%emt 0:00:42]} 66. Kg5 {[%emt 0:01:49]} Qe7+ {[%emt 0:00:12]} 67. Kh5 {[%emt 0:00:05] And now Qh8 would win.} Qb7 {[%emt 0:00:20]} 68. Qa1 {[%emt 0:04:22] Prevents Qh1+.} Qe4 {[%emt 0:03:11]} 69. Qa7+ {[%emt 0:00:30]} Kg8 {[%emt 0:00:49]} 70. Qb8+ {[%emt 0:00:04]} Kf7 {[%emt 0:00:03]} 71. Qc7+ {[%emt 0:00:13]} Kg8 {[%emt 0:00:27]} 72. Qd8+ {[%emt 0:05:03]} Kf7 {[%emt 0:00:04]} 73. Qd7+ {[%emt 0:00:03]} Kf8 {[%emt 0:00:10]} 74. Qc8+ {[%emt 0:01:16]} Kf7 {[%emt 0:00:28] ( -> ...Qh1+)} 75. Qc7+ {[%emt 0:00:09]} Kg8 {[%emt 0:00:05]} 76. Qe5 {[%emt 0:00:10] Active counter play!} Qg6+ $1 {[%emt 0:01:10]} 77. Kh4 {[%emt 0:00:01]} Kf7 {[%emt 0:01:53]} 78. Qc7+ {[%emt 0:00:42]} Kf8 {[%emt 0:00:48]} 79. Qd8+ {[%emt 0:00:51]} Kf7 {[%emt 0:00:07]} 80. Qc7+ {[%emt 0:03:20]} Kf8 {[%emt 0:00:04]} 81. Qc5+ {[%emt 0:00:14]} Kf7 {[%emt 0:00:11]} 82. Qa7+ {[%emt 0:00:50]} Kf8 {[%emt 0:00:09]} 83. Qd4 {[%emt 0:02:35]} Kf7 {[%emt 0:01:07]} 84. Kg3 {[%emt 0:00:06]} Ke7 {[%emt 0:00:59]} 85. Kf3 {[%emt 0:01:31]} Qh6 {[%emt 0:01:04]} 86. Qc5+ {[%emt 0:00:20]} Kf7 {[%emt 0:00:44]} 87. Qc7+ {[%emt 0:00:07]} Kf8 {[%emt 0:00:48]} 88. Qd8+ {[%emt 0:04:42]} Kf7 {[%emt 0:00:23]} 89. Qd7+ {[%emt 0:00:33]} Kf8 {[%emt 0:00:14]} 90. Qd1 {[%emt 0:00:03]} Kf7 {[%emt 0:01:31]} 91. Ke3 {[%emt 0:00:23]} Qh3+ {[%emt 0:01:13]} 92. Kd4 {[%emt 0:04:02]} Qg3 {[%emt 0:00:40]} 93. Ke4 {[%emt 0:00:49] Weighted Error Value: White=0.06 (flawless) /Black=0.06 (flawless)} 1/2-1/2

[Event "13th Asrian Memorial 2022"]
[Site "Yerevan"]
[Date "2022.06.15"]
[Round "9.4"]
[White "Petrosyan, Manuel"]
[Black "Andriasian, Zaven"]
[Result "1/2-1/2"]
[ECO "A11"]
[WhiteElo "2638"]
[BlackElo "2584"]
[Annotator "TA"]
[PlyCount "76"]
[EventDate "2022.06.07"]
[EventType "swiss"]
[EventCountry "ARM"]
[SourceTitle "playchess.com"]
[Source "ChessBase"]
[SourceQuality "1"]
[TimeControl "40/5400+30:1800+30"]

{[%evp 17,76,14,31,29,23,17,29,22,41,0,0,0,0,-11,0,0,18,0,35,0,0,-55,-12,-14,0,0,0,0,0,0,0,-60,-35,-151,-146,-152,-144,-139,-168,-185,0,0,0,0,0,0,0,0,0,0,0,-161,0,0,0,0,0,0,0,0,0]} 1. Nf3 {[%emt 0:08:43]} Nf6 {[%emt 0:00:48]} 2. g3 {[%emt 0:00:52]} d5 {[%emt 0:00:09]} 3. Bg2 {[%emt 0:00:07]} Bg4 {[%emt 0:00:08]} 4. O-O {[%emt 0:00:54]} Nbd7 {[%emt 0:00:13]} 5. h3 {[%emt 0:00:32]} Bh5 {[%emt 0:00:46]} 6. c4 {[%emt 0:02:12]} e6 {[%emt 0:06:54]} 7. cxd5 {[%emt 0:01:50]} exd5 {[%emt 0:00:27]} 8. Nc3 {[%emt 0:00:26]} c6 {[%emt 0:04:17]} 9. d3 {[%emt 0:01:02]} Bc5 {[%emt 0:05:17]} 10. Qb3 {[%emt 0:02:44] A11: English Opening: 1...c6.} Bb6 {[%emt 0:00:52]} 11. Na4 {[%emt 0:00:23]} O-O {[%emt 0:00:24]} 12. g4 {[%emt 0:03:27] White has an edge.} Bg6 {[%emt 0:00:26]} 13. Nh4 {[%emt 0:00:44]} Re8 {[%emt 0:04:22]} 14. Nxb6 {[%emt 0:05:12]} axb6 {[%emt 0:00:09]} 15. Qc2 {[%emt 0:02:19]} Nc5 {[%emt 0:08:00]} 16. f4 {[%emt 0:10:55][%cal Bf2f4,Bf4f5][%mdl 32] [#]} h6 $146 {[%emt 0:04:49]} ({Predecessor:} 16... Nfd7 17. g5 Bh5 18. Rf2 f6 19. Nf5 fxg5 20. fxg5 Ne6 21. Qc3 Bg6 22. h4 Rf8 {1-0 (37) Handler,L (2386)-Schreiner,T (2328) Austria 2017}) 17. Nf3 {[%emt 0:09:42]} d4 {[%emt 0:03:41]} 18. f5 {[%emt 0:08:27]} Bh7 {[%emt 0:00:15]} 19. Bf4 {[%emt 0:00:05]} (19. Rf2 $11) 19... h5 {[%emt 0:04:27]} (19... Nd5 $5 {[%cal Rd5f4]} 20. Bc1 (20. Nxd4 Qf6 $17) 20... Qe7 $11) 20. Nh2 {[%emt 0:13:18]} hxg4 {[%emt 0:02:28]} 21. hxg4 {[%emt 0:00:01]} Nd5 {[%emt 0:01:42]} 22. Bxd5 {[%emt 0:00:06]} Qxd5 {[%emt 0:00:07]} 23. Nf3 {[%emt 0:01:10]} g6 {[%emt 0:02:09]} 24. Qd2 {[%emt 0:03:44]} (24. b4 $11 Nd7 25. Kf2) 24... gxf5 $15 {[%emt 0:01:15]} 25. Be5 {[%emt 0:02:39]} Rxe5 $17 {[%emt 0:14:48]} 26. Qg5+ {[%emt 0:00:06]} Kf8 $1 {[%emt 0:03:00][%cal Bg8f8,Bf8e7,Be7d7][%mdl 32]} 27. Qh6+ {[%emt 0:01:55] [#]} Ke7 $1 {[%emt 0:07:26]} 28. Qxh7 {[%emt 0:04:14] [#]} ({But not} 28. Nxe5 $2 Qxe5 29. Rf2 (29. Qxh7 $2 Rh8 $19) 29... Rh8 $19) 28... Rxe2 {[%emt 0:02:02]} (28... Re3 $1 $19 29. Nh4 Rg3+ 30. Kh2 Rxg4 31. Rxf5 Qd6+ 32. Kh1 Rag8 33. Rxf7+ Ke8) 29. Rae1 $36 {[%emt 0:01:27][%mdl 2048] White has good play.} Re3 {[%emt 0:07:57]} 30. Nh4 {[%emt 0:00:08] Dancing on a razor blade.} Rxe1 $1 {[%emt 0:00:59]} 31. Rxe1+ {[%emt 0:00:45]} Kd7 {[%emt 0:00:09]} 32. Nxf5 {[%emt 0:02:03] Threatening mate with Re7+.} Re8 {[%emt 0:02:10] Inhibits Re7+.} 33. Rxe8 {[%emt 0:00:23]} Kxe8 {[%emt 0:00:08] KQN-KQN} 34. b4 $2 {[%emt 0:01:02]} (34. Qh4 $2 Qe5 35. Qh7 f6 $17) (34. Qg8+ $11 {and White is okay.} Kd7 35. Qb8) 34... Ne6 $2 {[%emt 0:04:28]} ({Black should play} 34... Nxd3 $19 35. Ng7+ Kf8 36. Qh8+ Ke7 37. Nf5+ Kd7) 35. Qg8+ {[%emt 0:10:41] The position is equal.} Nf8 {[%emt 0:00:03]} 36. Ng7+ {[%emt 0:00:18]} Ke7 {[%emt 0:00:01] ...Ng6 is the strong threat.} 37. Nf5+ {[%emt 0:00:06]} Ke8 {[%emt 0:00:04]} 38. Ng7+ {[%emt 0:00:02]} Ke7 {[%emt 0:00:10] Weighted Error Value: White=0.31/Black=0.25 (precise)} 1/2-1/2

[Event "13th Asrian Memorial 2022"]
[Site "Yerevan"]
[Date "2022.06.15"]
[Round "9.5"]
[White "Melkumyan, Hrant"]
[Black "Mahdavi, Reza"]
[Result "1/2-1/2"]
[ECO "E73"]
[WhiteElo "2655"]
[BlackElo "2303"]
[Annotator "TA"]
[PlyCount "70"]
[EventDate "2022.06.07"]
[EventType "swiss"]
[EventCountry "ARM"]
[SourceTitle "playchess.com"]
[Source "ChessBase"]
[SourceQuality "1"]
[TimeControl "40/5400+30:1800+30"]

{[%evp 14,70,28,10,22,14,16,0,0,0,17,7,14,-33,-30,-11,-15,-38,-14,-10,0,-33,-37,-29,0,0,0,-30,-16,-48,-52,-59,0,-39,0,-31,-39,-23,0,0,0,0,0,-8,0,0,0,0,0,0,0,0,0,0,0,0,0,0,0]} 1. d4 {[%emt 0:03:57]} Nf6 {[%emt 0:00:35]} 2. c4 {[%emt 0:00:15]} g6 {[%emt 0:00:11]} 3. Nc3 {[%emt 0:00:20]} Bg7 {[%emt 0:00:10]} 4. e4 {[%emt 0:00:14]} d6 {[%emt 0:00:07]} 5. Be2 {[%emt 0:00:10]} O-O {[%emt 0:00:11]} 6. h4 {[%emt 0:00:03][%cal Bh2h4,Bh4h5,Bh5h6][%mdl 32]} c5 {[%emt 0:00:47]} 7. d5 {[%emt 0:00:31]} e6 {[%emt 0:00:08]} 8. h5 {[%emt 0:00:06]} exd5 {[%emt 0:00:05] E73: King's Indian: Averbakh Variation without 6...c5.} 9. exd5 {[%emt 0:00:07]} Re8 {[%emt 0:00:09]} 10. h6 {[%emt 0:00:27]} Bh8 {[%emt 0:00:06]} 11. Bg5 {[%emt 0:00:13]} Qb6 {[%emt 0:00:07]} 12. b3 {[%emt 0:00:15]} Bf5 {[%emt 0:01:13] [#]} 13. Nf3 $146 {[%emt 0:03:53]} (13. Rc1 $11) ({Predecessor:} 13. Kf1 Na6 14. Rc1 Ne4 15. Nxe4 Rxe4 16. Rh4 Rxh4 17. Bxh4 Qa5 18. a4 Re8 19. Bd3 {½-½ (30) Kantor,G (2527)-Ganguly,S (2625) Biel 2021}) 13... Ne4 {[%emt 0:10:02]} 14. Nxe4 {[%emt 0:00:14]} Bxe4 {[%emt 0:00:03]} ({Don't take} 14... Rxe4 {[#]} 15. O-O $1 $14) 15. O-O {[%emt 0:00:26][%cal Of3d2]} Bxf3 {[%emt 0:04:54]} 16. Bxf3 {[%emt 0:00:14]} Nd7 {[%emt 0:00:07]} 17. Bg4 {[%emt 0:15:53]} f5 {[%emt 0:06:04]} 18. Bh3 {[%emt 0:03:48][%cal Og2g4]} Bf6 {[%emt 0:02:24]} 19. Bxf6 {[%emt 0:08:56]} Nxf6 {[%emt 0:00:20]} 20. Qc1 {[%emt 0:04:14][%cal Oh3f5]} Re5 {[%emt 0:13:31]} 21. Qb2 {[%emt 0:05:18] [#] f4 is the strong threat.} Kf7 $1 {[%emt 0:03:18]} 22. a3 {[%emt 0:03:36]} a5 {[%emt 0:01:52]} (22... Rae8 $15) 23. Rab1 {[%emt 0:00:10]} Rae8 {[%emt 0:08:00]} 24. Qc3 {[%emt 0:08:02]} R8e7 {[%emt 0:06:07]} 25. Rfe1 {[%emt 0:07:18]} Rxe1+ {[%emt 0:12:13]} 26. Rxe1 {[%emt 0:00:07] The position is equal.} Rxe1+ {[%emt 0:00:04]} 27. Qxe1 $11 {[%emt 0:00:19][%mdl 4096] Endgame Threatening mate with Qe6+. KQB-KQN} Qd8 {[%emt 0:00:02]} 28. Qc3 {[%emt 0:10:30]} b6 {[%emt 0:00:42]} 29. g4 $1 {[%emt 0:00:17]} Qf8 {[%emt 0:05:07]} 30. gxf5 {[%emt 0:10:10]} Qxh6 {[%emt 0:00:31] Hoping for ...gxf5.} 31. Qg3 {[%emt 0:02:29]} Ne4 {[%emt 0:09:35]} 32. Qf3 {[%emt 0:00:12]} Qg5+ {[%emt 0:00:06]} 33. Kh2 {[%emt 0:01:03]} gxf5 {[%emt 0:00:07]} 34. Bxf5 {[%emt 0:00:58]} Nf6 {[%emt 0:00:14][%cal Oa5a4]} 35. Kh3 {[%emt 0:03:55]} Qh6+ {[%emt 0:01:27] Weighted Error Value: White=0.08 (flawless) /Black=0.08 (flawless)} 1/2-1/2

[Event "13th Asrian Memorial 2022"]
[Site "Yerevan"]
[Date "2022.06.15"]
[Round "9.6"]
[White "Petrosian, Tigran L."]
[Black "Zarubitski, Viachaslau"]
[Result "1-0"]
[ECO "D00"]
[WhiteElo "2553"]
[BlackElo "2457"]
[Annotator "TA"]
[PlyCount "113"]
[EventDate "2022.06.07"]
[EventType "swiss"]
[EventCountry "ARM"]
[SourceTitle "playchess.com"]
[Source "ChessBase"]
[SourceQuality "1"]
[TimeControl "40/5400+30:1800+30"]

{[%evp 9,113,-11,0,5,-1,-3,-2,7,0,0,31,15,41,0,0,0,26,0,18,0,178,178,154,109,109,109,109,38,41,41,40,42,36,39,39,40,37,41,46,43,66,40,39,41,80,68,99,86,113,105,101,105,167,160,161,144,185,169,182,178,173,179,193,205,188,203,195,176,188,188,188,188,225,222,222,222,221,211,264,262,483,369,498,509,499,490,480,452,1216,1130,1436,1563,1560,1537,1304,1181,5193,2698,29984,29985,29985,29986,29987,29988,29987,29984]} 1. d4 {[%emt 0:07:54]} Nf6 {[%emt 0:00:21]} 2. Nc3 {[%emt 0:02:49]} d5 {[%emt 0:00:14]} 3. Bf4 {[%emt 0:00:05]} e6 {[%emt 0:03:36]} 4. Nb5 {[%emt 0:04:27]} Na6 {[%emt 0:08:46]} 5. e3 {[%emt 0:00:17]} Bb4+ {[%emt 0:05:44]} 6. c3 {[%emt 0:04:36] D00: 1 d4 d5: Unusual lines.} Be7 {[%emt 0:00:02]} 7. Nf3 $5 {[%emt 0:02:43][%mdl 4] Exploring less charted territory.} O-O {[%emt 0:00:32]} (7... c6 $5 8. Na3 Nh5 $11) 8. Bd3 {[%emt 0:01:22] [#] The position is equal.} c6 $146 {[%emt 0:05:23]} ({Predecessor:} 8... c5 9. Ne5 Bd7 10. a4 Be8 11. h4 c4 12. Bc2 Qb6 13. g4 Bxb5 14. axb5 Qxb5 {1-0 (21) Kovalev,V (2540)-Romanov,E (2586) Liepaja 2015}) 9. Na3 {[%emt 0:00:06]} Bxa3 {[%emt 0:03:46]} 10. bxa3 {[%emt 0:00:54]} Qa5 {[%emt 0:00:02]} 11. Qc1 {[%emt 0:03:19]} c5 {[%emt 0:01:39]} 12. O-O {[%emt 0:01:27]} Bd7 {[%emt 0:20:34]} 13. Qb2 {[%emt 0:01:27]} Rfc8 {[%emt 0:03:13]} 14. Rfc1 {[%emt 0:06:45]} Rc6 $2 {[%emt 0:07:42]} (14... c4 $11 {and Black has nothing to worry.} 15. Be2 Nc7) 15. Qxb7 $18 {[%emt 0:23:03]} Rac8 {[%emt 0:00:25]} 16. Ne5 {[%emt 0:00:14] 0x0.001762822973dp-1022s more active pieces. The black rooks are badly placed.} Rb6 {[%emt 0:02:32]} 17. Qxa7 {[%emt 0:00:16]} Rc7 {[%emt 0:00:28] [#]} 18. Nc4 $1 {[%emt 0:01:00][%mdl 512]} Rxa7 $14 {[%emt 0:01:26]} 19. Nxa5 {[%emt 0:00:05]} c4 {[%emt 0:00:21]} 20. Rab1 {[%emt 0:00:08]} Rxb1 {[%emt 0:05:29]} 21. Bxb1 {[%emt 0:00:04]} Ne8 {[%emt 0:01:18] [#] Against Bd6} 22. Nb3 $1 {[%emt 0:00:13]} cxb3 {[%emt 0:01:07]} 23. axb3 {[%emt 0:01:43]} Kf8 {[%emt 0:03:08]} 24. a4 {[%emt 0:03:17][%mdl 1024] White has compensation.} Ke7 {[%emt 0:00:59]} 25. Bd3 {[%emt 0:06:13]} ({Reject} 25. Bxh7 f5 $11) 25... Nd6 {[%emt 0:04:03]} 26. f3 {[%emt 0:00:27]} Nb8 {[%emt 0:02:06]} 27. e4 {[%emt 0:08:29][%cal Be3e4,Be4e5][%mdl 32] White now steadily converts the win.} Rb7 {[%emt 0:04:29]} 28. e5 {[%emt 0:06:44]} Ne8 {[%emt 0:00:38]} 29. Rb1 {[%emt 0:01:05]} ({Inferior is} 29. Bxh7 Rxb3 30. Bg5+ f6 31. exf6+ Nxf6 $17) 29... h6 {[%emt 0:00:51]} 30. Bc1 {[%emt 0:00:29]} f5 {[%emt 0:04:46]} (30... f6 $16) 31. Ba3+ $18 {[%emt 0:02:59]} Kf7 {[%emt 0:00:06]} 32. Bc5 {[%emt 0:00:35] Against Ra7} Nc7 {[%emt 0:00:33]} 33. Kf2 {[%emt 0:03:34]} Bc6 {[%emt 0:03:29]} 34. Ke3 {[%emt 0:00:28]} Nd7 {[%emt 0:00:03]} 35. Bd6 {[%emt 0:00:18]} Ne8 {[%emt 0:00:21]} 36. Bb4 {[%emt 0:00:50]} Ra7 {[%emt 0:00:45]} 37. g4 {[%emt 0:00:53]} g6 {[%emt 0:00:33]} 38. Rg1 {[%emt 0:03:14]} Bb7 {[%emt 0:01:19]} 39. gxf5 {[%emt 0:03:06]} gxf5 {[%emt 0:00:06]} 40. Bb5 {[%emt 0:00:00]} Ba6 {[%emt 0:00:00]} 41. Bc5 {[%emt 0:10:42]} Nxc5 {[%emt 0:02:24]} 42. dxc5 {[%emt 0:02:01][%cal Bd4c5,Bc5c6][%mdl 32] And now Bxe8+ would win.} Nc7 {[%emt 0:16:54] [#]} 43. c4 {[%emt 0:04:02] aiming for Kd4.} dxc4 {[%emt 0:00:36]} 44. bxc4 {[%emt 0:00:14]} Bc8 $2 {[%emt 0:03:46]} (44... Ra8 45. Rd1 f4+ 46. Kxf4 Rf8) 45. c6 {[%emt 0:03:43]} Na8 {[%emt 0:02:51]} 46. Kd4 {[%emt 0:01:58]} Nb6 {[%emt 0:00:13]} 47. Ra1 {[%emt 0:00:14]} Na8 {[%emt 0:01:59]} 48. Kc5 {[%emt 0:00:22]} Re7 {[%emt 0:00:40]} (48... Ke8 $142 49. Rg1 Kf8) 49. Rd1 {[%emt 0:04:08]} Re8 {[%emt 0:02:51] [#]} 50. Rd7+ $1 {[%emt 0:05:00][%mdl 512]} Bxd7 {[%emt 0:01:05]} 51. cxd7 {[%emt 0:00:04]} Rg8 {[%emt 0:04:49]} 52. Kd6 {[%emt 0:00:07]} f4 {[%emt 0:00:36]} 53. a5 {[%emt 0:00:44]} h5 {[%emt 0:02:47]} 54. h4 {[%emt 0:00:08] White mates.} Rg1 {[%emt 0:01:08]} 55. Bc6 {[%emt 0:00:54]} Rd1+ {[%emt 0:00:23] [#]} 56. Bd5 $1 {[%emt 0:00:05][%mdl 576] Promotion} exd5 {[%emt 0:00:07]} 57. c5 {[%emt 0:00:10] Weighted Error Value: White=0.07 (flawless) /Black=0.37} 1-0

[Event "13th Asrian Memorial 2022"]
[Site "Yerevan"]
[Date "2022.06.15"]
[Round "9.7"]
[White "Dilanyan, Grigor"]
[Black "Hayrapetyan, Hovik"]
[Result "1-0"]
[ECO "E06"]
[WhiteElo "2293"]
[BlackElo "2484"]
[Annotator "ChessBase"]
[PlyCount "85"]
[EventDate "2022.06.07"]
[EventType "swiss"]
[EventCountry "ARM"]
[SourceTitle "playchess.com"]
[Source "ChessBase"]
[SourceQuality "1"]
[TimeControl "40/5400+30:1800+30"]

1. d4 {[%emt 0:00:40]} Nf6 {[%emt 0:00:16]} 2. c4 {[%emt 0:02:35]} e6 {[%emt 0:00:08]} 3. Nf3 {[%emt 0:00:06]} d5 {[%emt 0:00:57]} 4. g3 {[%emt 0:00:30]} Be7 {[%emt 0:02:59]} 5. Bg2 {[%emt 0:02:06]} O-O {[%emt 0:00:27]} 6. Qc2 {[%emt 0:00:55]} dxc4 {[%emt 0:00:28]} 7. Qxc4 {[%emt 0:00:34]} a6 {[%emt 0:03:51]} 8. Qc2 {[%emt 0:00:40]} c5 {[%emt 0:07:11]} 9. dxc5 {[%emt 0:07:14]} Qa5+ {[%emt 0:00:44]} 10. Nbd2 {[%emt 0:09:40]} Nc6 {[%emt 0:07:12]} 11. O-O {[%emt 0:04:14]} Qxc5 {[%emt 0:00:06]} 12. Qxc5 {[%emt 0:01:08]} Bxc5 {[%emt 0:00:07]} 13. Nc4 {[%emt 0:03:33]} Nd5 {[%emt 0:06:47]} 14. Bd2 {[%emt 0:09:55]} Bd7 {[%emt 0:07:08]} 15. Rfc1 {[%emt 0:08:48]} Rfc8 {[%emt 0:10:14]} 16. a3 {[%emt 0:01:15]} a5 {[%emt 0:15:12]} 17. Rab1 {[%emt 0:07:24]} f6 {[%emt 0:07:34]} 18. e4 {[%emt 0:11:08]} Nb6 {[%emt 0:02:15]} 19. e5 {[%emt 0:05:35]} Nxc4 20. Rxc4 {[%emt 0:00:06]} Bb6 {[%emt 0:06:46]} 21. exf6 gxf6 {[%emt 0:00:16]} 22. Rg4+ {[%emt 0:03:38]} Kf7 {[%emt 0:00:30]} 23. Rh4 {[%emt 0:00:47]} Rh8 {[%emt 0:00:17]} 24. Bc3 {[%emt 0:03:35]} e5 {[%emt 0:04:20]} 25. Nd2 {[%emt 0:00:01]} Be6 {[%emt 0:06:38]} 26. Ne4 {[%emt 0:00:14]} Ke7 {[%emt 0:00:23]} 27. Rh6 {[%emt 0:02:34]} Raf8 {[%emt 0:00:28]} 28. b4 {[%emt 0:00:31]} Bc8 {[%emt 0:06:00]} 29. bxa5 {[%emt 0:02:56]} Bxa5 {[%emt 0:00:03]} 30. Bxa5 {[%emt 0:00:13]} Nxa5 {[%emt 0:00:03]} 31. Nc5 {[%emt 0:00:07]} Kf7 {[%emt 0:05:59]} 32. Rh4 {[%emt 0:09:05]} Kg6 {[%emt 0:00:39]} 33. Ra4 {[%emt 0:01:18]} Bf5 {[%emt 0:00:31]} 34. Rb6 {[%emt 0:01:27]} Ra8 {[%emt 0:00:29]} 35. g4 {[%emt 0:00:35]} Bc2 {[%emt 0:00:19]} 36. Rab4 {[%emt 0:00:38]} Rhd8 {[%emt 0:00:38]} 37. h4 {[%emt 0:00:55]} Rd1+ {[%emt 0:00:33]} 38. Kh2 {[%emt 0:00:05]} Rd4 {[%emt 0:00:31]} 39. g5 {[%emt 0:00:26]} Kh5 {[%emt 0:00:14]} 40. Rxd4 {[%emt 0:00:00]} exd4 {[%emt 0:00:00]} 41. Rxf6 {[%emt 0:00:58]} Kxh4 {[%emt 0:02:08]} 42. Ne6 {[%emt 0:02:20]} Bb3 {[%emt 0:12:49]} 43. Rf4+ {[%emt 0:00:22]} 1-0